fUST/lending_fUST_20251205
["ID","MTS","AMOUNT","RATE_DAILY","PERIOD"]
[396273782,1764913840790,-622.66,0.00019178,2]
[396273783,1764913840800,-500.0,0.00019178,2]
[396273784,1764913840810,-500.0,0.00019178,2]
[396273785,1764913840819,-500.0,0.00019178,2]
[396273786,1764913840829,-503.3,0.00019178,2]
[396273787,1764913840839,-500.0,0.00019178,2]
[396273788,1764913840848,-500.0,0.00019178,2]
[396273789,1764913840858,-500.0,0.00019178,2]
[396273790,1764913840869,-500.0,0.00019178,2]
[396273791,1764913840878,-1019.54,0.00019178,2]
[396273792,1764913840888,-770.89,0.00019178,2]
[396273793,1764913840898,-461.70349665,0.00019178,2]
[396273794,1764913840908,-500.0,0.00019178,2]
[396273795,1764913840918,-1125.82,0.00019178,2]
[396273797,1764913840928,-1261.7,0.00019178,2]
[396273798,1764913840938,-500.0,0.00019178,2]
[396273799,1764913840948,-500.0,0.00019178,2]
[396273800,1764913840959,-500.0,0.00019178,2]
[396273801,1764913840970,-951.73,0.00019178,2]
[396273802,1764913840980,-500.0,0.00019178,2]
[396273803,1764913840990,-500.0,0.00019178,2]
[396273804,1764913841000,-500.0,0.00019178,2]
[396273805,1764913841010,-500.0,0.00019178,2]
[396273806,1764913841020,-938.63,0.00019178,2]
[396273807,1764913841029,-500.0,0.00019178,2]
[396273808,1764913841040,-500.0,0.00019178,2]
[396273809,1764913841050,-501.65923832,0.00019178,2]
[396273810,1764913841061,-500.0,0.00019178,2]
[396273811,1764913841071,-919.76,0.00019178,2]
[396273812,1764913841081,-555.96,0.00019178,2]
[396273813,1764913841091,-500.0,0.00019178,2]
[396273814,1764913841101,-1683.43,0.00019178,2]
[396273815,1764913841112,-500.0,0.00019178,2]
[396273816,1764913841126,-1947.2,0.00019178,2]
[396273817,1764913841136,-500.0,0.00019178,2]
[396273818,1764913841146,-290.81362759,0.00019178,2]
[396273819,1764913841160,-240.39637241,0.00019178,2]
[396273820,1764913841171,-560.35,0.00019178,2]
[396273821,1764913841182,-635.33,0.00019178,2]
[396273822,1764913841193,-1814.22,0.00019178,2]
[396273823,1764913841204,-418.53662751,0.00019178,2]
[396273824,1764913841214,-500.0,0.00019178,2]
[396273825,1764913841224,-615.45,0.00019178,2]
[396273826,1764913841234,-2218.89,0.00019178,2]
[396273827,1764913841245,-986.59,0.00019178,2]
[396273828,1764913841255,-1530.02,0.00019178,2]
[396273829,1764913841266,-500.0,0.00019178,2]
[396273830,1764913841276,-1051.95,0.00019178,2]
[396273831,1764913841288,-500.0,0.00019178,2]
[396273832,1764913841297,-560.89,0.00019178,2]
[396273833,1764913841307,-731.67,0.00019178,2]
[396273834,1764913841316,-2954.97,0.00019178,2]
[396273835,1764913841326,-500.0,0.00019178,2]
[396273836,1764913841337,-500.0,0.00019178,2]
[396273837,1764913841347,-500.0,0.00019178,2]
[396273838,1764913841356,-500.0,0.00019178,2]
[396273839,1764913841366,-500.0,0.00019178,2]
[396273840,1764913841375,-774.66,0.00019178,2]
[396273841,1764913841385,-133.80016452,0.00019178,2]
[396273842,1764913841398,-366.19983548,0.00019178,2]
[396273843,1764913841408,-2386.05,0.00019178,2]
[396273844,1764913841418,-500.0,0.00019178,2]
[396273845,1764913841428,-4465.61,0.00019178,2]
[396273846,1764913841438,-726.36,0.00019178,2]
[396273847,1764913841447,-943.23,0.00019178,2]
[396273848,1764913841458,-523.09,0.00019178,2]
[396273849,1764913841468,-500.0,0.00019178,2]
[396273850,1764913841477,-500.0,0.00019178,2]
[396273851,1764913841487,-1241.88,0.00019178,2]
[396273852,1764913841498,-500.0,0.00019178,2]
[396273853,1764913841509,-1091.35,0.00019178,2]
[396273854,1764913841519,-500.0,0.00019178,2]
[396273855,1764913841530,-710.67,0.00019178,2]
[396273856,1764913841540,-265.00745407,0.00019178,2]
[396273857,1764913841550,-1398.88,0.00019178,2]
[396273858,1764913841560,-243.63292869,0.00019178,2]
[396273859,1764913841889,-556.85707131,0.00019178,2]
[396273860,1764913841899,-44.89631349,0.00019178,2]
[396273864,1764913842975,-455.10368651,0.00019178,2]
[396273865,1764913842985,-872.99,0.00019178,2]
[396273866,1764913842995,-500.0,0.00019178,2]
[396273867,1764913843004,-500.0,0.00019178,2]
[396273868,1764913843014,-500.0,0.00019178,2]
[396273869,1764913843024,-500.0,0.00019178,2]
[396273870,1764913843033,-500.0,0.00019178,2]
[396273871,1764913843043,-500.0,0.00019178,2]
[396273872,1764913843052,-1164.92,0.00019178,2]
[396273873,1764913843062,-547.5,0.00019178,2]
[396273874,1764913843071,-500.0,0.00019178,2]
[396273875,1764913843080,-500.0,0.00019178,2]
[396273876,1764913843090,-500.0,0.00019178,2]
[396273877,1764913843099,-1888.25,0.00019178,2]
[396273878,1764913843109,-688.41,0.00019178,2]
[396273879,1764913843121,-500.0,0.00019178,2]
[396273880,1764913843130,-500.0,0.00019178,2]
[396273881,1764913843140,-1335.15,0.00019178,2]
[396273882,1764913843150,-500.0,0.00019178,2]
[396273883,1764913843160,-500.0,0.00019178,2]
[396273884,1764913843170,-500.0,0.00019178,2]
[396273885,1764913843179,-691.8,0.00019178,2]
[396273886,1764913843189,-500.0,0.00019178,2]
[396273887,1764913843198,-2050.18155666,0.00019178,2]
[396273888,1764913843211,-2518.52844334,0.00019178,2]
[396273889,1764913843221,-3131.12,0.00019178,2]
[396273890,1764913843231,-2461.61,0.00019178,2]
[396273891,1764913843243,-500.0,0.00019178,2]
[396273892,1764913843253,-500.0,0.00019178,2]
[396273893,1764913843264,-500.0,0.00019178,2]
[396273894,1764913843274,-854.49,0.00019178,2]
[396273895,1764913843284,-500.0,0.00019178,2]
[396273896,1764913843295,-322.64950048,0.00019178,2]
[396273897,1764913843305,-500.0,0.00019178,2]
[396273898,1764913843321,-564.94,0.00019178,2]
[396273899,1764913843331,-500.0,0.00019178,2]
[396273900,1764913843342,-558.31692915,0.00019178,2]
[396273901,1764913843353,-1221.19,0.00019178,2]
[396273902,1764913843362,-2243.63,0.00019178,2]
[396273903,1764913843372,-3650.07,0.00019178,2]
[396273904,1764913843381,-524.35,0.00019178,2]
[396273905,1764913843391,-1914.45,0.00019178,2]
[396273906,1764913843401,-2285.91,0.00019178,2]
[396273907,1764913843410,-488.74512703,0.00019178,2]
[396273915,1764913845901,-232.0,0.00018986,2]
[396273916,1764913845911,-11.25487297,0.00019178,2]
[396273917,1764913845921,-457.4716713,0.00019178,2]
[396273918,1764913845932,-500.0,0.00019178,2]
[396273919,1764913845942,-1508.01,0.00019178,2]
[396273920,1764913845952,-500.0,0.00019178,2]
[396273921,1764913845963,-500.0,0.00019178,2]
[396273922,1764913845973,-1155.6,0.00019178,2]
[396273923,1764913845983,-524.02,0.00019178,2]
[396273924,1764913845994,-500.0,0.00019178,2]
[396273925,1764913846005,-1383.01,0.00019178,2]
[396273926,1764913846016,-500.0,0.00019178,2]
[396273927,1764913846026,-151.0,0.00019178,2]
[396273928,1764913846036,-151.0,0.00019178,2]
[396273929,1764913846047,-151.0,0.00019178,2]
[396273930,1764913846056,-500.0,0.00019178,2]
[396273931,1764913846066,-151.0,0.00019178,2]
[396273932,1764913846076,-615.89,0.00019178,2]
[396273933,1764913846087,-151.0,0.00019178,2]
[396273934,1764913846098,-500.0,0.00019178,2]
[396273935,1764913846108,-500.0,0.00019178,2]
[396273936,1764913846120,-151.0,0.00019178,2]
[396273937,1764913846129,-151.0,0.00019178,2]
[396273938,1764913846139,-151.0,0.00019178,2]
[396273939,1764913846150,-151.0,0.00019178,2]
[396273940,1764913846161,-151.0,0.00019178,2]
[396273941,1764913846170,-500.0,0.00019178,2]
[396273942,1764913846180,-151.0,0.00019178,2]
[396273943,1764913846190,-151.0,0.00019178,2]
[396273944,1764913846200,-500.0,0.00019178,2]
[396273945,1764913846211,-287.884189,0.00019178,2]
[396273946,1764913846222,-500.0,0.00019178,2]
[396273947,1764913846232,-1025.27,0.00019178,2]
[396273948,1764913846241,-2417.74,0.00019178,2]
[396273949,1764913846251,-526.43,0.00019178,2]
[396273950,1764913846264,-500.0,0.00019178,2]
[396273951,1764913846274,-1980.12,0.00019178,2]
[396273952,1764913846284,-500.0,0.00019178,2]
[396273953,1764913846293,-500.0,0.00019178,2]
[396273954,1764913846303,-500.0,0.00019178,2]
[396273955,1764913846313,-529.06,0.00019178,2]
[396273956,1764913846322,-627.02,0.00019178,2]
[396273957,1764913846332,-1163.17,0.00019178,2]
[396273958,1764913846342,-500.0,0.00019178,2]
[396273959,1764913846351,-500.0,0.00019178,2]
[396273960,1764913846360,-500.0,0.00019178,2]
[396273961,1764913846370,-568.6,0.00019178,2]
[396273962,1764913846380,-500.0,0.00019178,2]
[396273963,1764913846391,-500.0,0.00019178,2]
[396273964,1764913846400,-500.0,0.00019178,2]
[396273965,1764913846411,-500.0,0.00019178,2]
[396273966,1764913846420,-1589.29,0.00019178,2]
[396273967,1764913846429,-500.0,0.00019178,2]
[396273968,1764913846440,-500.0,0.00019178,2]
[396273969,1764913846450,-2138.37,0.00019178,2]
[396273970,1764913846461,-995.5,0.00019178,2]
[396273971,1764913846470,-868.85,0.00019178,2]
[396273972,1764913846479,-500.0,0.00019178,2]
[396273973,1764913846490,-4611.17,0.00019178,2]
[396273974,1764913846501,-536.16938459,0.00019178,2]
[396274356,1764914793090,-232.0,0.00017391,2]
[396274357,1764914793113,-177.5515508,0.00017555,2]
[396274440,1764915031944,-150.0,0.00017473,2]
[396274441,1764915031954,-298.0,0.00017473,2]
[396274442,1764915031963,-153.82543652,0.00017674,2]
[396274443,1764915032003,-245.36115078,0.00017674,2]
[396274444,1764915032012,-365.58794777,0.00017744,2]
[396274445,1764915032023,-134.41205223,0.00017744,2]
[396274446,1764915032032,-485.26084037,0.00017744,2]
[396274447,1764915032041,-500.0,0.00017921,2]
[396274448,1764915032051,-500.0,0.00017921,2]
[396274449,1764915032060,-300.0,0.00017923,2]
[396274450,1764915032069,-300.0,0.00017923,2]
[396274451,1764915032078,-500.0,0.00017924,2]
[396274452,1764915032088,-500.0,0.00017924,2]
[396274453,1764915032097,-500.0,0.00017924,2]
[396274454,1764915032106,-500.0,0.00017924,2]
[396274455,1764915032115,-190.41327341,0.00017924,2]
[396274456,1764915032124,-8873.93692291,0.00017924,2]
[396274457,1764915032133,-192.2832849,0.00018578,2]
[396274458,1764915032142,-192.2832849,0.000186,2]
[396274459,1764915032151,-576.571139,0.000186,2]
[396274460,1764915032160,-192.2832849,0.00018878,2]
[396274461,1764915032169,-192.2832849,0.000189,2]
[396274462,1764915032178,-192.2832849,0.000189,2]
[396274463,1764915032187,-345.48841704,0.00019,2]
[396274464,1764915032196,-142.09646617,0.00019,2]
[396274465,1764915032207,-352.3441611,0.00019,2]
[396274466,1764915032217,-567.19434269,0.00019077,2]
[396274467,1764915032226,-247.7500744,0.00019077,2]
[396274468,1764915032235,-508.35601448,0.00019077,2]
[396274469,1764915032244,-500.0,0.00019077,2]
[396274470,1764915032253,-500.0,0.00019077,2]
[396274471,1764915032262,-380.25826569,0.00019077,2]
[396274472,1764915032271,-241.56,0.00019078,2]
[396274473,1764915032281,-4171.91935941,0.00019078,2]
[396274474,1764915032293,-35482.96401412,0.00019078,2]
[396274504,1764915038250,-673.35,0.00019078,2]
[396274505,1764915038279,-4373.59618389,0.00019078,2]
[396274506,1764915038290,-863.94,0.00019078,2]
[396274507,1764915038302,-4670.6585885,0.00019078,2]
[396274508,1764915038317,-4148.09067191,0.00019078,2]
[396274539,1764915040219,-4000.0,0.00019078,2]
[396274541,1764915040232,-3999.998655,0.00019078,2]
[396275099,1764915046090,-173.0,0.000191,3]
[396275101,1764915046100,-170.18,0.000191,2]
[396275103,1764915046110,-301.8864018,0.000191,2]
[396275105,1764915046121,-301.8864018,0.000191,2]
[396275107,1764915046132,-192.2832849,0.000191,2]
[396275109,1764915046141,-384.0672126,0.000191,2]
[396275111,1764915046152,-494.44062726,0.00019176,2]
[396275113,1764915046162,-500.0,0.00019178,2]
[396275115,1764915046172,-500.0,0.00019178,2]
[396275117,1764915046182,-500.0,0.00019178,2]
[396275120,1764915046191,-500.0,0.00019178,2]
[396275122,1764915046202,-500.0,0.00019178,2]
[396275123,1764915046211,-500.0,0.00019178,2]
[396275125,1764915046220,-500.0,0.00019178,2]
[396275127,1764915046230,-500.0,0.00019178,2]
[396275130,1764915046239,-500.0,0.00019178,2]
[396275131,1764915046248,-500.0,0.00019178,2]
[396275133,1764915046257,-500.0,0.00019178,2]
[396275135,1764915046267,-500.0,0.00019178,2]
[396275138,1764915046276,-500.0,0.00019178,2]
[396275141,1764915046285,-500.0,0.00019178,2]
[396275143,1764915046294,-500.0,0.00019178,2]
[396275145,1764915046303,-500.0,0.00019178,2]
[396275147,1764915046312,-500.0,0.00019178,2]
[396275149,1764915046321,-500.0,0.00019178,2]
[396275151,1764915046331,-500.0,0.00019178,2]
[396275153,1764915046340,-1115.96,0.00019178,2]
[396275155,1764915046350,-458.24403402,0.00019178,2]
[396275157,1764915046360,-500.0,0.00019178,2]
[396275159,1764915046370,-500.0,0.00019178,2]
[396275161,1764915046379,-979.89,0.00019178,2]
[396275163,1764915046388,-500.0,0.00019178,2]
[396275165,1764915046397,-500.0,0.00019178,2]
[396275167,1764915046407,-704.11,0.00019178,2]
[396275169,1764915046416,-500.0,0.00019178,2]
[396275171,1764915046425,-1140.25,0.00019178,2]
[396275173,1764915046434,-500.0,0.00019178,2]
[396275175,1764915046443,-728.48,0.00019178,2]
[396275177,1764915046453,-500.0,0.00019178,2]
[396275179,1764915046462,-500.0,0.00019178,2]
[396275181,1764915046471,-500.0,0.00019178,2]
[396275183,1764915046480,-500.0,0.00019178,2]
[396275185,1764915046489,-500.0,0.00019178,2]
[396275187,1764915046499,-500.0,0.00019178,2]
[396275189,1764915046508,-701.66,0.00019178,2]
[396275191,1764915046516,-500.0,0.00019178,2]
[396275192,1764915046526,-500.0,0.00019178,2]
[396275194,1764915046537,-272.66300092,0.00019178,2]
[396275197,1764915046546,-500.0,0.00019178,2]
[396275198,1764915046555,-500.0,0.00019178,2]
[396275200,1764915046568,-1836.21,0.00019178,2]
[396275202,1764915046577,-762.15,0.00019178,2]
[396275204,1764915046587,-500.0,0.00019178,2]
[396275206,1764915046597,-500.0,0.00019178,2]
[396275208,1764915046610,-500.0,0.00019178,2]
[396275210,1764915046619,-500.0,0.00019178,2]
[396275212,1764915046628,-1526.36,0.00019178,2]
[396275214,1764915046638,-500.0,0.00019178,2]
[396275216,1764915046647,-721.72,0.00019178,2]
[396275218,1764915046657,-500.0,0.00019178,2]
[396275220,1764915046666,-500.0,0.00019178,2]
[396275222,1764915046676,-500.0,0.00019178,2]
[396275224,1764915046685,-1077.69,0.00019178,2]
[396275226,1764915046695,-500.0,0.00019178,2]
[396275228,1764915046704,-527.5473623,0.00019178,2]
[396275230,1764915046713,-500.0,0.00019178,2]
[396275252,1764915046723,-648.43,0.00019178,2]
[396275263,1764915047007,-500.0,0.00019178,2]
[396275265,1764915047016,-500.0,0.00019178,2]
[396275267,1764915047026,-417.19476137,0.00019178,2]
[396275269,1764915047035,-500.0,0.00019178,2]
[396275271,1764915047045,-1078.91,0.00019178,2]
[396275273,1764915047054,-560.53739175,0.00019178,2]
[396275275,1764915047064,-151.9421862,0.00019178,2]
[396275277,1764915047073,-600.84,0.00019178,2]
[396275279,1764915047084,-1368.84,0.00019178,2]
[396275281,1764915047093,-500.0,0.00019178,2]
[396275283,1764915047103,-500.0,0.00019178,2]
[396275285,1764915047112,-1866.07,0.00019178,2]
[396275287,1764915047121,-500.0,0.00019178,2]
[396275290,1764915047132,-500.0,0.00019178,2]
[396275292,1764915047141,-1102.88,0.00019178,2]
[396275294,1764915047150,-1124.32,0.00019178,2]
[396275296,1764915047160,-508.32685014,0.00019178,2]
[396275298,1764915047169,-500.0,0.00019178,2]
[396275300,1764915047179,-500.0,0.00019178,2]
[396275301,1764915047187,-500.0,0.00019178,2]
[396275303,1764915047197,-500.0,0.00019178,2]
[396275305,1764915047207,-913.57,0.00019178,2]
[396275307,1764915047216,-500.0,0.00019178,2]
[396275309,1764915047225,-500.0,0.00019178,2]
[396275312,1764915047235,-500.0,0.00019178,2]
[396275314,1764915047245,-500.0,0.00019178,2]
[396275315,1764915047254,-742.38,0.00019178,2]
[396275318,1764915047264,-1808.67,0.00019178,2]
[396275319,1764915047275,-500.0,0.00019178,2]
[396275321,1764915047284,-500.0,0.00019178,2]
[396275324,1764915047294,-530.69001864,0.00019178,2]
[396275326,1764915047304,-500.0,0.00019178,2]
[396275327,1764915047313,-1125.27,0.00019178,2]
[396275330,1764915047322,-500.0,0.00019178,2]
[396275332,1764915047332,-2842.37,0.00019178,2]
[396275333,1764915047341,-169.728144,0.00019178,2]
[396275335,1764915047351,-501.25,0.00019178,2]
[396275338,1764915047361,-1848.81,0.00019178,2]
[396275340,1764915047370,-500.0,0.00019178,2]
[396275342,1764915047380,-500.0,0.00019178,2]
[396275344,1764915047389,-537.0,0.00019178,2]
[396275345,1764915047400,-1789.53,0.00019178,2]
[396275348,1764915047409,-500.0,0.00019178,2]
[396275350,1764915047419,-2090.637307,0.00019178,2]
[396275352,1764915047429,-500.0,0.00019178,2]
[396275354,1764915047439,-500.0,0.00019178,2]
[396275356,1764915047449,-500.0,0.00019178,2]
[396275358,1764915047458,-549.3,0.00019178,2]
[396275360,1764915047468,-500.0,0.00019178,2]
[396275362,1764915047478,-500.0,0.00019178,2]
[396275364,1764915047488,-1013.75,0.00019178,2]
[396275366,1764915047498,-401.38355038,0.00019178,2]
[396275368,1764915047507,-912.08,0.00019178,2]
[396275370,1764915047517,-500.0,0.00019178,2]
[396275372,1764915047527,-500.0,0.00019178,2]
[396275374,1764915047537,-500.0,0.00019178,2]
[396275376,1764915047546,-500.0,0.00019178,2]
[396275378,1764915047555,-500.0,0.00019178,2]
[396275380,1764915047566,-1114.7,0.00019178,2]
[396275382,1764915047575,-500.0,0.00019178,2]
[396275384,1764915047585,-343.50722164,0.00019178,2]
[396275386,1764915047594,-500.0,0.00019178,2]
[396275388,1764915047606,-500.0,0.00019178,2]
[396275389,1764915047615,-596.72,0.00019178,2]
[396275392,1764915047624,-500.0,0.00019178,2]
[396275393,1764915047637,-500.0,0.00019178,2]
[396275395,1764915047647,-500.0,0.00019178,2]
[396275397,1764915047656,-500.0,0.00019178,2]
[396275399,1764915047666,-500.0,0.00019178,2]
[396275401,1764915047676,-500.0,0.00019178,2]
[396275403,1764915047685,-509.23791604,0.00019178,2]
[396275405,1764915047694,-500.0,0.00019178,2]
[396275407,1764915047703,-500.0,0.00019178,2]
[396275409,1764915047712,-500.0,0.00019178,2]
[396275411,1764915047722,-1185.64,0.00019178,2]
[396275413,1764915047731,-501.63,0.00019178,2]
[396275415,1764915047740,-500.0,0.00019178,2]
[396275418,1764915047750,-516.11193534,0.00019178,2]
[396275419,1764915047759,-281.53803826,0.00019178,2]
[396275424,1764915047792,-252.86196174,0.00019178,2]
[396275426,1764915047802,-2190.66,0.00019178,2]
[396275428,1764915047811,-500.0,0.00019178,2]
[396275430,1764915047822,-500.0,0.00019178,2]
[396275432,1764915047832,-500.0,0.00019178,2]
[396275434,1764915047842,-532.79,0.00019178,2]
[396275436,1764915047851,-1116.38,0.00019178,2]
[396275438,1764915047861,-500.0,0.00019178,2]
[396275440,1764915047871,-568.75446068,0.00019178,2]
[396281149,1764916232195,-327.43131969,0.00017773,2]
[396281150,1764916232205,-303.0,0.00017953,2]
[396281151,1764916232215,-137.98529509,0.00018044,2]
[396281152,1764916232227,-12.01470491,0.00018044,2]
[396281153,1764916232236,-193.248,0.00018184,2]
[396281154,1764916232246,-299.34017912,0.00018219,2]
[396281155,1764916232256,-399.1865873,0.00018412,2]
[396281156,1764916232266,-1008.85124185,0.00018436,2]
[396281157,1764916232275,-301.8864018,0.000189,2]
[396281158,1764916232284,-301.9260101,0.000189,2]
[396281159,1764916232294,-247.22031363,0.000189,2]
[396281160,1764916232303,-300.0,0.00018966,2]
[396281161,1764916232313,-1624.77656129,0.00018967,2]
[396281162,1764916232324,-305.24391306,0.00018967,2]
[396281163,1764916232336,-28064.33790145,0.00018967,2]
[396281164,1764916232347,-439.11675587,0.00018967,2]
[396281200,1764916238322,-2312.83697232,0.00018955,2]
[396281202,1764916238332,-3219.77499816,0.00018967,2]
[396281273,1764916240475,-16125.7834296,0.00018967,2]
[396281274,1764916240485,-1200.0,0.00018973,2]
[396281275,1764916240495,-173.42505208,0.00018975,2]
[396281276,1764916240505,-971.29365035,0.00018976,2]
[396281303,1764916363214,15869.83555781,0.000211,99]
[396281575,1764917432518,-322.0,0.00013027,2]
[396281576,1764917432531,-127.13619048,0.00013027,2]
[396281577,1764917432541,-257.0,0.00013027,2]
[396281578,1764917432552,-150.0,0.00013193,2]
[396281579,1764917432562,-417.559651,0.00013699,2]
[396281580,1764917432572,-500.0,0.00013699,2]
[396281581,1764917432583,-500.0,0.00013699,2]
[396281582,1764917432592,-498.89444509,0.00013699,2]
[396281583,1764917432603,-1200.0,0.00014246,2]
[396281584,1764917432612,-501.01164772,0.00014247,2]
[396281585,1764917432622,-1000.0,0.00014247,2]
[396281586,1764917432632,-706.01852193,0.00014795,2]
[396281587,1764917432642,-177.0,0.00015193,2]
[396281588,1764917432652,-421.94716541,0.0001565,2]
[396281589,1764917432662,-363.92883444,0.0001565,2]
[396281590,1764917432672,-500.0,0.0001565,2]
[396281591,1764917432683,-500.0,0.0001565,2]
[396281592,1764917432694,-500.0,0.0001565,2]
[396281593,1764917432704,-500.0,0.0001565,2]
[396281594,1764917432714,-500.0,0.0001565,2]
[396281595,1764917432725,-418.02086477,0.0001565,2]
[396281596,1764917432735,-500.0,0.0001565,2]
[396281597,1764917432746,-500.0,0.0001565,2]
[396281598,1764917432756,-518.83873312,0.0001565,2]
[396281599,1764917432766,-300.0,0.0001565,2]
[396281600,1764917432776,-300.0,0.0001565,2]
[396281601,1764917432786,-26738.86415492,0.00015651,2]
[396281602,1764917432796,-160.42299074,0.00015651,2]
[396281603,1764917432805,-1680.0,0.0001567,2]
[396281604,1764917432815,-1200.0,0.00015749,2]
[396281605,1764917432825,-978.6648198,0.0001575,2]
[396281606,1764917432834,-272.31193306,0.00015753,7]
[396281607,1764917432844,-160.42299067,0.00016493,2]
[396281608,1764917432854,-1363.742,0.0001666,2]
[396281609,1764917432863,-420.0,0.00017117,2]
[396281610,1764917432874,-420.0,0.00017117,2]
[396281611,1764917432884,-204.0,0.00017193,2]
[396281612,1764917432896,-162.41958874,0.00017222,2]
[396281613,1764917432906,-257.0,0.00017223,2]
[396281614,1764917432917,-717.0,0.00017237,2]
[396281615,1764917432927,-160.42299067,0.00017334,2]
[396281616,1764917432939,-154.598,0.00017924,2]
[396281617,1764917432949,-160.42299067,0.00018176,2]
[396281618,1764917432959,-301.8864018,0.00018178,2]
[396281619,1764917432970,-301.8864018,0.00018178,2]
[396281620,1764917432980,-192.2832849,0.00018178,2]
[396281621,1764917432990,-19.34732724,0.00018178,2]
[396281641,1764917438489,-282.53907456,0.00018178,2]
[396281642,1764917438501,-294.49242069,0.00018218,2]
[396281643,1764917440668,-252.50422656,0.00018218,2]
[396281644,1764917440679,-2312.83697232,0.00018218,2]
[396281646,1764917440689,-500.0,0.00018218,2]
[396281648,1764917440699,-4.45439837,0.00018218,2]
[396281651,1764917441103,-495.54560163,0.00018218,2]
[396281652,1764917441113,-500.0,0.00018218,2]
[396281653,1764917441123,-282.72759394,0.00018218,2]
[396282434,1764918305807,10000.0,0.00015,30]
[396282435,1764918327387,469.21,0.00015,30]
[396282460,1764918397463,-409.5515508,0.00013699,2]
[396282525,1764918632643,-232.0,0.00013562,2]
[396282528,1764918632653,-262.0,0.00013562,2]
[396282530,1764918632662,-90.4484492,0.00013699,2]
[396282532,1764918632672,-276.08809773,0.00014247,2]
[396282534,1764918632682,-178.0,0.00017631,2]
[396282536,1764918632691,-2561.13184387,0.00017632,2]
[396282538,1764918632703,-5719.92811303,0.00017632,2]
[396282541,1764918632712,-300.0,0.00017975,2]
[396282544,1764918632722,-362.68939453,0.00017977,2]
[396282566,1764918638780,-590.51595713,0.00017977,2]
[396282567,1764918638790,-301.8864018,0.00017978,2]
[396282568,1764918638799,-4075.27774816,0.00017999,2]
[396282592,1764918641181,-150.0,0.00017978,2]
[396282594,1764918641191,-350.0,0.00017999,2]
[396283104,1764919831746,-894.16616751,0.00016262,2]
[396283105,1764919831758,-288.0,0.00016426,2]
[396283108,1764919831773,-152.50348482,0.00016718,2]
[396283110,1764919831785,-300.0,0.00016928,2]
[396283112,1764919831796,-311.53552918,0.00017733,2]
[396283114,1764919831811,-87.65105812,0.00017733,2]
[396283117,1764919831823,-387.59615155,0.000179,2]
[396283119,1764919831833,-9798.4780145,0.00017999,2]
[396283120,1764919831846,-154.598,0.00017999,2]
[396283121,1764919831857,-272.81668746,0.00017999,2]
[396283212,1764919837847,-74.92543287,0.00017999,2]
[396283213,1764919837856,-500.0,0.00017999,2]
[396283214,1764919837865,-500.0,0.00017999,2]
[396283215,1764919837875,-471.59585461,0.00017999,2]
[396283216,1764919837885,-171.19901614,0.00017999,2]
[396283217,1764919837894,-147.75687412,0.00017999,2]
[396283218,1764919837906,-352.24312588,0.00017999,2]
[396283219,1764919837915,-500.0,0.00017999,2]
[396283220,1764919837924,-181.58667829,0.00017999,2]
[396283221,1764919837933,-500.0,0.00017999,2]
[396283222,1764919837941,-500.0,0.00017999,2]
[396283223,1764919837949,-500.0,0.00017999,2]
[396283224,1764919837958,-528.52605835,0.00017999,2]